[Event "Kashem Chowdhury Rating-A 2019"]
[Site "Dhaka"]
[Date "2019.05.10"]
[Round "7.5"]
[White "Avik, Sarker"]
[Black "Mohammad Fahad, Rahman"]
[Result "1/2-1/2"]
[ECO "D00"]
[WhiteElo "2000"]
[BlackElo "2322"]
[Annotator "RC"]
[PlyCount "79"]
[EventDate "2019.05.04"]
[EventType "swiss"]
[EventCountry "BAN"]
[SourceTitle "playchess.com"]
[Source "ChessBase"]
[SourceQuality "1"]
[TimeControl "5400+30"]

1. d4 {[%emt 0:00:00]} d5 {[%emt 1:30:30]} 2. Bf4 {[%emt 0:00:00]} c5 {[%emt 0:00:10]} 3. e3 {[%emt 0:00:00]} Nc6 {[%emt 0:00:12]} 4. c3 {[%emt 0:00:14]} Nf6 {[%emt 0:00:12]} 5. Nd2 {[%emt 0:00:12]} Qb6 {[%emt 0:09:01]} 6. Qb3 {[%emt 0:01:08]} c4 {[%emt 0:00:21]} 7. Qc2 {[%emt 0:07:28]} g6 {[%emt 0:00:15]} 8. Be2 {[%emt 1:24:58]} Bf5 {[%emt 0:00:36]} 9. Qc1 {[%emt 0:00:02]} Bg7 {[%emt 0:02:14]} 10. Ngf3 {[%emt 0:01:18]} O-O {[%emt 0:04:07]} 11. h3 {[%emt 0:02:50]} Rfe8 {[%emt 0:07:41]} 12. O-O {[%emt 0:02:38]} Rac8 {[%emt 0:01:57]} 13. Re1 {[%emt 0:01:05]} Ne4 {[%emt 0:01:57]} 14. Nxe4 {[%emt 0:05:23]} Bxe4 {[%emt 1:08:17]} 15. Nd2 {[%emt 0:00:59]} Bf5 {[%emt 0:05:39]} 16. g4 {[%emt 0:10:10]} Bd3 {[%emt 0:03:35]} 17. Bxd3 {[%emt 0:03:06]} cxd3 {[%emt 0:00:17]} 18. Qb1 {[%emt 0:00:44]} e5 {[%emt 0:01:28]} 19. dxe5 {[%emt 0:02:19]} Bxe5 {[%emt 0:00:24]} 20. Nf3 {[%emt 0:53:03]} Bxf4 {[%emt 0:10:16]} 21. exf4 {[%emt 0:00:15]} Re2 {[%emt 0:00:05]} 22. Rxe2 {[%emt 0:34:28]} dxe2 {[%emt 0:00:01]} 23. Qc2 {[%emt 0:01:46]} Re8 {[%emt 0:00:23]} 24. Re1 {[%emt 0:32:06]} Re4 {[%emt 0:05:18]} 25. Qd2 {[%emt 0:08:30]} Qb5 {[%emt 0:00:52]} 26. Kg2 {[%emt 0:01:52]} a5 {[%emt 0:03:07]} 27. b3 {[%emt 0:00:47]} a4 {[%emt 0:00:24]} 28. Ng5 {[%emt 0:03:31]} Re7 {[%emt 0:00:00]} 29. f5 {[%emt 0:08:34]} axb3 {[%emt 0:01:42]} 30. f6 {[%emt 0:01:27]} Re5 {[%emt 0:00:33]} 31. axb3 {[%emt 0:04:30]} d4 {[%emt 0:02:03]} 32. Nf3 {[%emt 0:01:32]} Re6 {[%emt 0:00:06]} 33. c4 {[%emt 0:02:13]} Qc5 {[%emt 0:03:53]} 34. g5 {[%emt 0:01:39]} Ne5 {[%emt 0:00:05]} 35. Qxd4 {[%emt 0:00:30]} Qc6 {[%emt 0:01:45]} 36. Qd5 {[%emt 0:00:12]} Nxf3 {[%emt 0:00:14]} 37. Kxf3 {[%emt 0:00:24]} Qe8 {[%emt 0:00:00]} 38. Qd2 {[%emt 0:00:47]} Qc6+ {[%emt 0:09:07]} 39. Qd5 {[%emt 0:00:10]} Qe8 {[%emt 0:00:14]} 40. Qd2 {[%emt 0:00:14]} 1/2-1/2

[Event "Kashem Chowdhury Rating-A 2019"]
[Site "Dhaka"]
[Date "2019.05.10"]
[Round "7.6"]
[White "Ahmed, Mahtabuddin"]
[Black "Islam, Mohammad Aminul"]
[Result "0-1"]
[ECO "A17"]
[WhiteElo "2036"]
[BlackElo "2027"]
[Annotator "NA"]
[PlyCount "168"]
[EventDate "2019.05.04"]
[EventType "swiss"]
[EventCountry "BAN"]
[SourceTitle "playchess.com"]
[Source "ChessBase"]
[SourceQuality "1"]
[TimeControl "5400+30"]

1. Nf3 {[%emt 0:03:16]} f5 {[%emt 0:00:22]} 2. b3 {[%emt 0:01:17]} Nf6 {[%emt 0:00:38]} 3. Bb2 {[%emt 0:00:35]} e6 {[%emt 0:00:17]} 4. g3 {[%emt 0:00:49]} b6 {[%emt 0:01:09]} 5. Bg2 {[%emt 0:00:28]} Bb7 {[%emt 0:00:15]} 6. O-O {[%emt 0:06:30]} Be7 {[%emt 0:00:55]} 7. c4 {[%emt 0:01:45]} a5 {[%emt 0:01:13] A17: English Opening: 1...Nf6 with ...Bb4} 8. Nc3 {[%emt 0:02:45]} Na6 {[%emt 0:00:22]} 9. d3 {[%emt 0:06:39]} O-O {[%emt 0:00:18]} 10. e3 $146 {[%emt 0:04:03]} ({Predecessor:} 10. e4 fxe4 11. Ng5 Nc5 12. Ngxe4 Nfxe4 13. Nxe4 Nxe4 14. dxe4 a4 15. Qd2 Rf7 16. f4 Ra7 17. h4 Qa8 {½-½ (17) Antoniewski,R (2521)-Van Foreest,J (2638) Brest 2018}) 10... Qe8 {[%emt 0:05:29]} 11. Qe2 {[%emt 0:01:47]} Nc5 {[%emt 0:01:01]} 12. Rfd1 {[%emt 0:11:07]} Qh5 {[%emt 0:11:49]} 13. Nd4 {[%emt 0:05:51]} Qxe2 {[%emt 0:05:09]} 14. Ndxe2 {[%emt 0:00:52]} Bxg2 {[%emt 0:01:26]} 15. Kxg2 {[%emt 0:00:04]} c6 {[%emt 0:11:08]} 16. f3 {[%emt 0:12:45]} Rfb8 {[%emt 0:07:09]} 17. d4 {[%emt 0:00:43]} Nb7 {[%emt 0:01:07]} 18. d5 {[%emt 0:08:34]} Bc5 {[%emt 0:10:05]} 19. dxc6 {[%emt 0:16:04]} dxc6 {[%emt 0:00:53]} 20. Nd4 {[%emt 0:00:45]} Nd8 {[%emt 0:00:55]} 21. e4 {[%emt 0:02:57]} fxe4 {[%emt 0:03:32]} 22. Nxe4 {[%emt 0:00:36]} Nxe4 {[%emt 0:01:45]} 23. fxe4 {[%emt 0:00:09]} a4 {[%emt 0:00:48]} 24. Nf3 {[%emt 0:03:05]} Nf7 {[%emt 0:01:41]} 25. Rd7 {[%emt 0:04:34]} Rd8 {[%emt 0:01:27]} 26. Rxd8+ {[%emt 0:02:34]} Rxd8 {[%emt 0:00:06]} 27. Rc1 {[%emt 0:02:13]} Rd3 {[%emt 0:02:22]} 28. Re1 {[%emt 0:00:31]} axb3 {[%emt 0:00:32]} 29. axb3 {[%emt 0:00:13]} Rxb3 {[%emt 0:00:34]} 30. Ba1 {[%emt 0:00:06]} Rd3 {[%emt 0:01:25]} 31. Ne5 {[%emt 0:00:17]} Nxe5 {[%emt 0:08:56]} 32. Bxe5 {[%emt 0:00:02]} Bd4 {[%emt 0:02:59]} 33. Bc7 {[%emt 0:01:01]} Re3 {[%emt 0:01:43]} 34. Rb1 {[%emt 0:01:01]} Rxe4 {[%emt 0:00:22]} 35. Bxb6 {[%emt 0:00:48]} Bxb6 {[%emt 0:00:18]} 36. Rxb6 {[%emt 0:00:01]} Rxc4 {[%emt 0:00:08]} 37. Rb7 {[%emt 0:00:01]} Rc2+ {[%emt 0:03:21]} 38. Kh3 {[%emt 0:00:05]} Kf8 {[%emt 0:00:51]} 39. g4 {[%emt 0:00:10]} h6 {[%emt 0:02:18]} 40. Kg3 {[%emt 0:00:15]} e5 {[%emt 0:00:18]} 41. h4 {[%emt 0:00:56]} Rc3+ {[%emt 0:00:23]} 42. Kf2 {[%emt 0:00:25]} e4 {[%emt 0:00:09]} 43. Rc7 {[%emt 0:00:18]} Rf3+ {[%emt 0:00:58]} 44. Ke2 {[%emt 0:01:21]} Rf6 {[%emt 0:02:15]} 45. Ke3 {[%emt 0:00:08]} Re6 {[%emt 0:00:02]} 46. h5 {[%emt 0:01:04]} Kg8 {[%emt 0:04:53]} 47. Rd7 {[%emt 0:00:08]} g6 {[%emt 0:01:03]} 48. Rc7 {[%emt 0:01:35]} gxh5 {[%emt 0:01:50]} 49. gxh5 {[%emt 0:00:01]} Kf8 {[%emt 0:00:19]} 50. Rh7 {[%emt 0:01:13] [#]} Ke8 $1 {[%emt 0:00:57]} 51. Rc7 {[%emt 0:00:29] [#]} Kd8 $1 {[%emt 0:00:19]} 52. Rh7 {[%emt 0:00:12]} c5 {[%emt 0:00:25]} 53. Ra7 {[%emt 0:00:32]} Re5 {[%emt 0:00:55]} 54. Kf4 {[%emt 0:00:02]} Re7 {[%emt 0:01:38]} 55. Ra8+ {[%emt 0:00:19]} Kd7 {[%emt 0:00:02]} 56. Ke3 {[%emt 0:00:07]} Re6 {[%emt 0:00:44]} 57. Ra7+ {[%emt 0:01:18]} Kd6 {[%emt 0:00:16]} 58. Ra8 {[%emt 0:00:11]} Kd5 {[%emt 0:00:44]} 59. Rg8 {[%emt 0:01:01]} Re5 {[%emt 0:00:28]} 60. Rd8+ {[%emt 0:00:06]} Kc4 {[%emt 0:00:02]} 61. Kf4 {[%emt 0:00:09]} Rxh5 {[%emt 0:00:41]} 62. Kxe4 {[%emt 0:00:01]} Rh1 {[%emt 0:00:32]} 63. Ke3 {[%emt 0:00:32]} h5 {[%emt 0:00:07]} 64. Kd2 {[%emt 0:00:22]} h4 {[%emt 0:00:03]} 65. Rh8 {[%emt 0:00:42]} Rh2+ {[%emt 0:00:03]} 66. Kd1 {[%emt 0:00:04]} Kc3 {[%emt 0:00:29]} 67. Ra8 {[%emt 0:00:26]} c4 {[%emt 0:00:26]} 68. Rc8 {[%emt 0:00:10]} h3 {[%emt 0:00:12]} 69. Rh8 {[%emt 0:00:06]} Rd2+ {[%emt 0:01:40]} 70. Kc1 {[%emt 0:00:14]} Rd3 {[%emt 0:00:14]} 71. Rh6 {[%emt 0:00:09]} Rg3 {[%emt 0:00:32]} 72. Kd1 {[%emt 0:00:02]} Kb2 {[%emt 0:01:20]} 73. Rb6+ {[%emt 0:00:06]} Rb3 {[%emt 0:01:08]} 74. Rf6 {[%emt 0:01:02]} Rg3 {[%emt 0:01:39]} 75. Rb6+ {[%emt 0:00:17]} Kc3 {[%emt 0:00:02]} 76. Rh6 {[%emt 0:00:21]} Rg1+ {[%emt 0:00:03]} 77. Ke2 {[%emt 0:00:02]} Rh1 {[%emt 0:00:28]} 78. Kf2 {[%emt 0:00:10]} Kc2 {[%emt 0:00:05]} (78... Kd2 $142 79. Rd6+ Kc2) 79. Rh4 {[%emt 0:00:24]} c3 {[%emt 0:00:09]} 80. Rh8 {[%emt 0:00:05]} Kc1 {[%emt 0:00:21]} 81. Rh7 {[%emt 0:00:16]} c2 {[%emt 0:00:14]} 82. Rb7 {[%emt 0:00:13]} Kd2 {[%emt 0:00:32]} 83. Rd7+ {[%emt 0:00:03]} Kc3 {[%emt 0:00:18]} 84. Rc7+ {[%emt 0:00:03]} Kb3 {[%emt 0:00:08]} 0-1

[Event "Kashem Chowdhury Rating-A 2019"]
[Site "Dhaka"]
[Date "2019.05.10"]
[Round "7.8"]
[White "Ghosh, Chanchal Kumer"]
[Black "Md. Jamal Uddin"]
[Result "1/2-1/2"]
[ECO "C54"]
[WhiteElo "2051"]
[BlackElo "2084"]
[Annotator "NA"]
[PlyCount "106"]
[EventDate "2019.05.04"]
[EventType "swiss"]
[EventCountry "BAN"]
[SourceTitle "playchess.com"]
[Source "ChessBase"]
[SourceQuality "1"]
[TimeControl "5400+30"]

{[%evp 8,100,26,20,10,19,14,32767,38,21,27,18,36,32767,39,27,27,32767,10,-2,8,-120,-97,-97,-95,-96,-104,-206,-98,32767,32767,-34,-47,-31,-46,-45,6,32767,-25,0,-22,0,32767,-55,-4,0,0,0,0,-25,-35,-35,32767,32767,32767,32767,32767,32767,32767,32767,-9,-14,0,0,-12,32767,-15,32767,32767,32767,32767,32767,32767,32767,32767,32767,32767,32767,32767,-37,32767,32767,32767,32767,32767,32767,32767,32767,32767,32767,0,32767,0,0,0]} 1. e4 {[%emt 0:15:56]} e5 {[%emt 0:00:32]} 2. Nf3 {[%emt 0:00:13]} Nc6 {[%emt 0:00:16]} 3. Bc4 {[%emt 0:00:13]} Bc5 {[%emt 0:00:40]} 4. c3 {[%emt 0:00:48]} Nf6 {[%emt 0:01:11]} 5. d3 {[%emt 0:02:01]} d6 {[%emt 0:01:35]} 6. Bg5 {[%emt 0:03:10]} h6 {[%emt 0:01:00]} 7. Bh4 {[%emt 0:01:04]} Qe7 {[%emt 0:03:06]} 8. Nbd2 {[%emt 0:05:16] C54: Giuoco Piano: 4 c3 Nf6, main lines with 5 d4 and 5 d3} a6 {[%emt 0:00:55]} 9. a4 {[%emt 0:02:36]} Bb6 {[%emt 0:03:59]} (9... Ba7 10. Qe2 Be6 11. b4 O-O 12. O-O Rfe8 13. Rfb1 Rab8 14. a5 Bxc4 15. Nxc4 Qe6 16. Bxf6 Qxf6 {1-0 (51) Najer,E (2707)-Aleksandrov,A (2580) Tbilisi 2017}) 10. b4 {[%emt 0:02:28]} Be6 {[%emt 0:05:18]} (10... g5 $5 {[%cal Rg5h4]} 11. Bg3 O-O $11) 11. a5 {[%emt 0:04:58]} Ba7 {[%emt 0:00:47]} 12. Qa4 {[%emt 0:03:47]} O-O {[%emt 0:03:30]} 13. O-O $146 {[%emt 0:00:53]} ({Predecessor:} 13. Bxa6 Nxa5 14. bxa5 bxa6 15. Rb1 {0-1 (52) Sinnhoefer,M-Keil,M Germany 1994}) 13... g5 {[%emt 0:02:59]} 14. Nxg5 {[%emt 0:07:51]} (14. Bg3 $11) 14... hxg5 {[%emt 0:01:02]} 15. Bxg5 {[%emt 0:00:03]} Bxc4 {[%emt 0:00:52]} 16. Nxc4 {[%emt 0:02:20]} Qe6 {[%emt 0:02:00]} 17. Qd1 {[%emt 0:02:44] [#]} (17. b5 $17 {was worth a try.} axb5 18. Qxb5) 17... Nh7 {[%emt 0:01:26]} (17... Nxe4 $1 $19 {[%mdl 512]} 18. dxe4 Qxc4 {[%mdl 64] Double Attack}) 18. Be3 {[%emt 0:00:54] [#]} Kh8 {[%emt 0:01:24]} (18... f5 $1 $17 19. Bxa7 Rxa7) 19. Bxa7 {[%emt 0:42:15]} Nxa7 {[%emt 0:00:22]} 20. Ne3 $1 {[%emt 0:00:00]} Rg8 {[%emt 0:00:51]} 21. f4 {[%emt 0:00:00]} exf4 {[%emt 0:00:55]} 22. Rxf4 {[%emt 0:00:00]} Nc6 {[%emt 0:00:32]} 23. Qe2 {[%emt 0:00:00]} Ne7 {[%emt 0:03:54]} 24. Raf1 {[%emt 0:00:00]} Raf8 {[%emt 0:00:23]} 25. Qf2 {[%emt 0:00:00]} Rg7 {[%emt 0:02:17]} 26. Rh4 $1 {[%emt 0:00:00]} Rfg8 {[%emt 0:04:45]} 27. Kh1 {[%emt 0:00:00]} c6 {[%emt 0:02:05]} 28. c4 {[%emt 0:00:00]} Qe5 {[%emt 0:11:33]} 29. Qf3 {[%emt 0:00:00]} Qd4 {[%emt 0:08:13]} 30. Ng4 {[%emt 0:00:00]} f5 {[%emt 0:04:17]} 31. Nh6 {[%emt 0:06:00]} Rf8 {[%emt 0:04:07]} 32. h3 {[%emt 0:00:00]} Ng6 {[%emt 0:11:18]} 33. Rh5 {[%emt 0:00:00]} Ne5 {[%emt 0:10:33]} 34. Nxf5 {[%emt 0:00:00] Double Attack} Qxd3 {[%emt 0:00:48]} 35. Qxd3 {[%emt 0:00:00]} Nxd3 {[%emt 0:00:04]} 36. b5 {[%emt 0:00:00]} Rg5 $11 {[%emt 0:01:09]} 37. Rh6 {[%emt 0:00:00]} axb5 {[%emt 0:04:22]} 38. cxb5 {[%emt 0:00:00]} d5 {[%emt 0:00:42]} 39. h4 {[%emt 0:00:00]} Rg4 {[%emt 0:00:22]} 40. exd5 {[%emt 0:00:00]} cxd5 {[%emt 0:00:34]} 41. a6 {[%emt 0:00:00]} bxa6 {[%emt 0:00:10]} 42. bxa6 {[%emt 0:00:00]} Ra4 {[%emt 0:00:36]} 43. Kg1 {[%emt 0:01:05]} Nf4 {[%emt 0:01:47]} 44. Rb1 {[%emt 0:01:31]} Rxf5 {[%emt 0:00:20]} 45. Rb7 {[%emt 0:00:18]} Kg8 {[%emt 0:01:02]} 46. Rhxh7 {[%emt 0:01:21]} Rxa6 {[%emt 0:00:46]} 47. Rbg7+ {[%emt 0:03:45]} Kf8 {[%emt 0:00:06]} 48. Rb7 {[%emt 0:00:00]} Kg8 {[%emt 0:00:22]} 49. Rbg7+ {[%emt 0:00:00]} Kf8 {[%emt 0:01:20]} 50. Rb7 {[%emt 0:00:00]} Ne2+ {[%emt 0:00:43]} 51. Kh2 {[%emt 0:00:00]} Kg8 {[%emt 0:00:20]} 52. Rhg7+ {[%emt 0:00:00]} Kf8 {[%emt 0:00:12]} 53. Rh7 {[%emt 0:00:00]} Kg8 {[%emt 0:00:03]} 1/2-1/2

[Event "Kashem Chowdhury Rating-A 2019"]
[Site "Dhaka"]
[Date "2019.05.10"]
[Round "7.9"]
[White "Chowdhury, Sohel"]
[Black "Alam, Monjur"]
[Result "1/2-1/2"]
[ECO "C06"]
[WhiteElo "2044"]
[BlackElo "2031"]
[Annotator "NA RC"]
[PlyCount "103"]
[EventDate "2019.05.04"]
[EventType "swiss"]
[EventCountry "BAN"]
[SourceTitle "playchess.com"]
[Source "ChessBase"]
[SourceQuality "1"]
[TimeControl "5400+30"]

{[%evp 30,82,49,44,52,-6,47,27,69,22,21,22,38,50,50,51,60,57,41,1,32767,32767,11,0,45,7,32767,0,0,-43,-40,-46,-31,-60,-42,-78,-82,-79,-25,-53,-58,-55,-57,-59,-67,-54,-28,32767,-80,-73,-70,-39,-8,-8,-8]} 1. e4 {[%emt 0:00:00]} e6 {[%emt 0:02:40]} 2. d4 {[%emt 0:00:00]} d5 {[%emt 0:00:14]} 3. Nd2 {[%emt 0:00:06]} Nf6 {[%emt 0:00:08]} 4. e5 {[%emt 0:00:17]} Nfd7 {[%emt 0:00:02]} 5. Bd3 {[%emt 0:00:20]} c5 {[%emt 0:00:19]} 6. c3 {[%emt 0:00:08]} Nc6 {[%emt 0:00:02]} 7. Ne2 {[%emt 0:00:16]} Qb6 {[%emt 0:00:52]} 8. Nf3 {[%emt 0:01:17]} cxd4 {[%emt 0:00:26]} 9. cxd4 {[%emt 0:00:03]} Bb4+ {[%emt 0:00:23]} 10. Bd2 {[%emt 0:01:26]} Bxd2+ {[%emt 0:01:32]} 11. Qxd2 {[%emt 0:00:03]} Qb4 {[%emt 0:00:43]} 12. Rc1 {[%emt 0:03:16]} Qxd2+ {[%emt 0:01:19]} 13. Nxd2 {[%emt 0:01:33]} a6 {[%emt 0:00:55] C06: French Tarrasch: 3...Nf6 4 e5 Nfd7 5 Bd3 main lines} (13... Ndb8 14. O-O Bd7 15. a3 O-O 16. b4 a6 17. f4 f5 18. Nb3 b6 19. Nc3 Na7 {½-½ (19) Filip,A (1894)-Martinov,L (2225) Skopje 2019}) 14. f4 {[%emt 0:04:26]} O-O {[%emt 0:01:39]} 15. O-O {[%emt 0:01:51]} Nb6 {[%emt 0:01:07]} 16. a3 {[%emt 0:02:38]} Bd7 {[%emt 0:06:20]} 17. b4 {[%emt 0:00:21]} Rac8 {[%emt 0:03:12]} 18. Nb3 {[%emt 0:01:24]} Na4 {[%emt 0:06:24]} 19. Rc2 $146 {[%emt 0:06:07]} ({Predecessor:} 19. Nc5 Nxc5 20. Rxc5 Ne7 21. Rfc1 Rxc5 22. Rxc5 {½-½ (60) Zak,J-Aubert,C Amsterdam 1980}) 19... Na7 {[%emt 0:04:53]} 20. Rfc1 {[%emt 0:02:47]} Nb5 {[%emt 0:03:18]} 21. Rxc8 {[%emt 0:00:50]} Rxc8 {[%emt 0:00:02]} 22. Rxc8+ {[%emt 0:00:53]} Bxc8 {[%emt 0:00:02]} 23. Bxb5 {[%emt 0:00:12]} axb5 {[%emt 0:00:02]} 24. Kf2 {[%emt 0:07:51]} (24. Nc5 $14) 24... b6 {[%emt 0:00:58]} 25. g3 {[%emt 0:04:10]} Bd7 {[%emt 0:01:01]} 26. Nd2 {[%emt 0:01:05]} f6 {[%emt 0:00:35]} 27. Ke3 {[%emt 0:00:52]} Be8 {[%emt 0:00:36]} (27... Kf7 $11) 28. Nb1 {[%emt 0:12:27]} (28. f5 $14) 28... Nb2 {[%emt 0:01:09]} 29. Nec3 {[%emt 0:00:16]} Nc4+ {[%emt 0:00:30]} 30. Kf3 {[%emt 0:01:59]} Kf8 {[%emt 0:00:17]} 31. g4 {[%emt 0:01:34]} Bg6 {[%emt 0:01:33]} 32. Kg3 {[%emt 0:02:52]} (32. exf6 $11 {keeps the balance.} gxf6 33. Ke2) 32... Bd3 {[%emt 0:00:48]} 33. h4 {[%emt 0:02:54]} Ne3 {[%emt 0:02:02]} (33... Kf7 $17) 34. Kf3 {[%emt 0:12:20]} Nc2 $1 {[%emt 0:01:01]} 35. exf6 {[%emt 0:01:01]} gxf6 {[%emt 0:00:19]} 36. f5 {[%emt 0:00:37]} Ke7 {[%emt 0:01:41]} 37. fxe6 {[%emt 0:01:42]} Kxe6 {[%emt 0:00:13]} 38. Ne2 {[%emt 0:05:47]} Bxe2+ {[%emt 0:02:29]} 39. Kxe2 {[%emt 0:00:02]} Nxd4+ {[%emt 0:00:11]} 40. Kd3 $1 {[%emt 0:00:47]} Ke5 {[%emt 0:03:23]} ({Black should try} 40... Nf3 $1 $15 41. Nc3 Nxh4) 41. Nc3 {[%emt 0:00:56]} f5 $11 {[%emt 0:02:28]} 42. gxf5 {[%emt 0:01:20]} Nxf5 {[%emt 0:00:02]} 43. Nxb5 {[%emt 0:01:34]} Nxh4 {[%emt 0:00:07]} 44. a4 {[%emt 0:01:16]} Nf5 {[%emt 0:04:00]} 45. a5 {[%emt 0:00:27]} bxa5 {[%emt 0:00:04]} 46. bxa5 {[%emt 0:00:02]} Nd6 {[%emt 0:00:53]} 47. Nxd6 {[%emt 0:00:58]} Kxd6 {[%emt 0:00:17]} 48. a6 {[%emt 0:00:46]} Kc6 {[%emt 0:00:01]} 49. a7 {[%emt 0:00:09]} Kb7 {[%emt 0:00:01]} 50. Kd4 {[%emt 0:00:02]} h5 {[%emt 0:00:10]} 51. Kxd5 {[%emt 0:00:02]} h4 {[%emt 0:00:02]} 52. Ke4 {[%emt 0:00:02]} 1/2-1/2

[Event "Kashem Chowdhury Rating-A 2019"]
[Site "Dhaka"]
[Date "2019.05.10"]
[Round "7.10"]
[White "Nayem, Haque"]
[Black "Rahman, Syed Mahfuzur"]
[Result "1/2-1/2"]
[ECO "C50"]
[WhiteElo "2106"]
[BlackElo "2217"]
[Annotator "ChessBase"]
[PlyCount "124"]
[EventDate "2019.05.04"]
[EventType "swiss"]
[EventCountry "BAN"]
[SourceTitle "playchess.com"]
[Source "ChessBase"]
[SourceQuality "1"]
[TimeControl "5400+30"]

1. e4 {[%emt 0:00:00]} e5 {[%emt 0:01:16]} 2. Nf3 {[%emt 0:00:00]} Nc6 {[%emt 0:00:04]} 3. Bc4 {[%emt 0:00:25]} Be7 {[%emt 0:00:33]} 4. d4 {[%emt 0:00:40]} d6 {[%emt 0:04:58]} 5. dxe5 {[%emt 0:03:07]} dxe5 {[%emt 0:03:44]} 6. Qxd8+ {[%emt 0:04:15]} Bxd8 {[%emt 0:00:12]} 7. Bb5 {[%emt 0:00:07]} Bd7 {[%emt 0:00:06]} 8. Bd2 {[%emt 0:00:55]} Nf6 {[%emt 0:00:32]} 9. Nc3 {[%emt 0:00:25]} Nb4 {[%emt 0:09:46]} 10. Rc1 {[%emt 0:10:02]} O-O {[%emt 0:13:17]} 11. Bc4 {[%emt 0:01:22]} Re8 {[%emt 0:09:06]} 12. Ng5 {[%emt 0:03:28]} Rf8 {[%emt 0:01:31]} 13. O-O {[%emt 0:16:34]} Nc6 {[%emt 0:07:52]} 14. Rfe1 {[%emt 0:14:59]} h6 {[%emt 0:06:59]} 15. Nf3 {[%emt 0:00:11]} Bg4 {[%emt 0:00:41]} 16. Nh4 {[%emt 0:05:52]} Nd4 {[%emt 0:10:11]} 17. h3 {[%emt 0:01:58]} Bd7 {[%emt 0:03:03]} 18. Nf5 {[%emt 0:01:56]} Re8 {[%emt 0:01:32]} 19. Bd3 {[%emt 0:01:23]} Bxf5 {[%emt 0:07:39]} 20. exf5 {[%emt 0:00:07]} c6 {[%emt 0:00:02]} 21. Ne4 {[%emt 0:00:46]} Nxe4 {[%emt 0:01:18]} 22. Bxe4 {[%emt 0:00:16]} Bg5 {[%emt 0:00:45]} 23. Bxg5 {[%emt 0:04:23]} hxg5 {[%emt 0:00:11]} 24. Kf1 {[%emt 0:00:14]} Rad8 {[%emt 0:01:03]} 25. Rcd1 {[%emt 0:01:13]} Kf8 {[%emt 0:02:28]} 26. Bd3 {[%emt 0:00:31]} g6 {[%emt 0:02:50]} 27. fxg6 {[%emt 0:00:55]} f6 {[%emt 0:00:01]} 28. c3 {[%emt 0:06:04]} Ne6 {[%emt 0:00:17]} 29. Bc4 {[%emt 0:01:01]} Rxd1 {[%emt 0:00:59]} 30. Rxd1 {[%emt 0:01:18]} Rd8 {[%emt 0:00:01]} 31. Rxd8+ {[%emt 0:01:32]} Nxd8 {[%emt 0:00:01]} 32. Bd3 {[%emt 0:05:59]} Kg7 {[%emt 0:03:06]} 33. Bf5 {[%emt 0:02:58]} c5 {[%emt 0:00:06]} 34. Ke2 {[%emt 0:00:20]} b6 {[%emt 0:00:42]} 35. g4 {[%emt 0:04:21]} Nb7 {[%emt 0:02:17]} 36. Kd3 {[%emt 0:00:53]} Nd6 {[%emt 0:00:08]} 37. c4 {[%emt 0:00:27]} a5 {[%emt 0:03:23]} 38. f3 {[%emt 0:01:20]} Kf8 {[%emt 0:00:45]} 39. Kc3 {[%emt 0:00:16]} Ke7 {[%emt 0:01:24]} 40. Bc2 {[%emt 0:01:07]} Kf8 {[%emt 0:00:09]} 41. a3 {[%emt 0:00:54]} Kg7 {[%emt 0:00:48]} 42. Bd3 {[%emt 0:00:49]} Kf8 {[%emt 0:00:19]} 43. Kb3 {[%emt 0:00:07]} Kg7 {[%emt 0:00:10]} 44. Ka4 {[%emt 0:00:12]} Kf8 {[%emt 0:00:09]} 45. b4 {[%emt 0:00:11]} axb4 {[%emt 0:00:26]} 46. axb4 {[%emt 0:00:02]} cxb4 {[%emt 0:00:05]} 47. Kxb4 {[%emt 0:00:52]} Kg7 {[%emt 0:00:40]} 48. Bc2 {[%emt 0:02:37]} Kh6 {[%emt 0:00:29]} 49. Bb1 {[%emt 0:00:34]} Kg7 {[%emt 0:00:09]} 50. Bf5 {[%emt 0:00:05]} Kf8 {[%emt 0:00:28]} 51. Bc2 {[%emt 0:00:17]} Kg7 {[%emt 0:00:19]} 52. Bd3 {[%emt 0:00:05]} Kf8 {[%emt 0:01:12]} 53. Bc2 {[%emt 0:02:08]} Kg7 {[%emt 0:00:03]} 54. Be4 {[%emt 0:00:05]} Kh6 {[%emt 0:01:00]} 55. c5 {[%emt 0:02:21]} bxc5+ {[%emt 0:00:08]} 56. Kxc5 {[%emt 0:00:02]} Nxe4+ {[%emt 0:03:09]} 57. fxe4 {[%emt 0:00:05]} Kxg6 {[%emt 0:00:07]} 58. Kd6 {[%emt 0:00:11]} Kh6 {[%emt 0:00:10]} 59. Kd7 {[%emt 0:00:21]} Kh7 {[%emt 0:00:18]} 60. Kd8 {[%emt 0:00:24]} Kh8 {[%emt 0:00:30]} 61. Kd7 {[%emt 0:01:23]} Kh7 {[%emt 0:00:09]} 62. Ke8 {[%emt 0:00:17]} Kg8 {[%emt 0:00:10]} 1/2-1/2